[Event "Titled Tuesday Blitz August 16 Early 2022"]
[White "Navarrete Mendez, Gonzalo Alberto"]
[Black "Zenin, Dmitry"]
[WhiteFideId "5106850"]
[BlackFideId "4127897"]
[WhiteElo "2261"]
[BlackElo "2215"]
[Result "1/2-1/2"]
[Round "07"]
[TimeControl "180+2"]
[Date "2022.08.18"]
[WhiteClock "0:00:00"]
[BlackClock "0:00:00"]

1. e4 {[%clk 0:00:00]}  g6 {[%clk 0:00:00]} 2. Nf3 {[%clk 0:00:00]}  Bg7 {[%clk 0:00:00]} 3. Nc3 {[%clk 0:00:00]}  d6 {[%clk 0:00:00]} 4. d4 {[%clk 0:00:00]}  a6 {[%clk 0:00:00]} 5. Bc4 {[%clk 0:00:00]}  b5 {[%clk 0:00:00]} 6. Bb3 {[%clk 0:00:00]}  Bb7 {[%clk 0:00:00]} 7. Ng5 {[%clk 0:00:00]}  e6 {[%clk 0:00:00]} 8. Bxe6 {[%clk 0:00:00]}  fxe6 {[%clk 0:00:00]} 9. Nxe6 {[%clk 0:00:00]}  Qd7 {[%clk 0:00:00]} 10. Nd5 {[%clk 0:00:00]}  Bxd5 {[%clk 0:00:00]} 11. exd5 {[%clk 0:00:00]}  Nf6 {[%clk 0:00:00]} 12. O-O {[%clk 0:00:00]}  Kf7 {[%clk 0:00:00]} 13. Ng5+ {[%clk 0:00:00]}  Kg8 {[%clk 0:00:00]} 14. Re1 {[%clk 0:00:00]}  c6 {[%clk 0:00:00]} 15. Qf3 {[%clk 0:00:00]}  Qf5 {[%clk 0:00:00]} 16. Qg3 {[%clk 0:00:00]}  Qxd5 {[%clk 0:00:00]} 17. Ne6 {[%clk 0:00:00]}  Ra7 {[%clk 0:00:00]} 18. Bg5 {[%clk 0:00:00]}  Nbd7 {[%clk 0:00:00]} 19. Nf4 {[%clk 0:00:00]}  Qf5 {[%clk 0:00:00]} 20. Re7 {[%clk 0:00:00]}  Ra8 {[%clk 0:00:00]} 21. Rae1 {[%clk 0:00:00]}  Rf8 {[%clk 0:00:00]} 22. Ne6 {[%clk 0:00:00]}  Rf7 {[%clk 0:00:00]} 23. Qxd6 {[%clk 0:00:00]}  Qd5 {[%clk 0:00:00]} 24. Rxf7 {[%clk 0:00:00]}  Kxf7 {[%clk 0:00:00]} 25. Nd8+ {[%clk 0:00:00]}  Kg8 {[%clk 0:00:00]} 26. Qe7 {[%clk 0:00:00]}  Bf8 {[%clk 0:00:00]} 27. Qe3 {[%clk 0:00:00]}  h6 {[%clk 0:00:00]} 28. Bxf6 {[%clk 0:00:00]}  Nxf6 {[%clk 0:00:00]} 29. Ne6 {[%clk 0:00:00]}  Kh7 {[%clk 0:00:00]} 30. Nf4 {[%clk 0:00:00]}  Qf7 {[%clk 0:00:00]} 31. Qh3 {[%clk 0:00:00]}  Bg7 {[%clk 0:00:00]} 32. Ne6 {[%clk 0:00:00]}  Re8 {[%clk 0:00:00]} 33. Kf1 {[%clk 0:00:00]}  Kg8 {[%clk 0:00:00]} 34. b3 {[%clk 0:00:00]}  Nd5 {[%clk 0:00:00]} 35. g3 {[%clk 0:00:00]}  Nc7 {[%clk 0:00:00]} 36. Nxc7 {[%clk 0:00:00]}  Rxe1+ {[%clk 0:00:00]} 37. Kxe1 {[%clk 0:00:00]}  Qxc7 {[%clk 0:00:00]} 38. Qe6+ {[%clk 0:00:00]}  Qf7 {[%clk 0:00:00]} 39. Qc8+ {[%clk 0:00:00]}  Kh7 {[%clk 0:00:00]} 40. Qxc6 {[%clk 0:00:00]}  Bxd4 {[%clk 0:00:00]} 41. f4 {[%clk 0:00:00]}  Qe7+ {[%clk 0:00:00]} 42. Kf1 {[%clk 0:00:00]}  Qf6 {[%clk 0:00:00]} 43. Qb7+ {[%clk 0:00:00]}  Kg8 {[%clk 0:00:00]} 44. Kg2 {[%clk 0:00:00]}  Bc3 {[%clk 0:00:00]} 45. Qc8+ {[%clk 0:00:00]}  Kh7 {[%clk 0:00:00]} 46. h3 {[%clk 0:00:00]}  h5 {[%clk 0:00:00]} 47. g4 {[%clk 0:00:00]}  hxg4 {[%clk 0:00:00]} 48. hxg4 {[%clk 0:00:00]}  Bd4 {[%clk 0:00:00]} 49. Qd7+ {[%clk 0:00:00]}  Qg7 {[%clk 0:00:00]} 50. Qe6 {[%clk 0:00:00]}  Qf8 {[%clk 0:00:00]} 51. Qd7+ {[%clk 0:00:00]}  Bg7 {[%clk 0:00:00]} 52. Kf3 {[%clk 0:00:00]}  Qc5 {[%clk 0:00:00]} 53. Qd3 {[%clk 0:00:00]}  Qc6+ {[%clk 0:00:00]} 54. Kg3 {[%clk 0:00:00]}  Qc5 {[%clk 0:00:00]} 55. f5 {[%clk 0:00:00]}  gxf5 {[%clk 0:00:00]} 56. gxf5 {[%clk 0:00:00]}  Bf6 {[%clk 0:00:00]} 57. Kg4 {[%clk 0:00:00]}  Kh6 {[%clk 0:00:00]} 58. Qh3+ {[%clk 0:00:00]}  Kg7 {[%clk 0:00:00]} 59. Qd3 {[%clk 0:00:00]}  Qe5 {[%clk 0:00:00]} 60. Qd7+ {[%clk 0:00:00]}  Qe7 {[%clk 0:00:00]} 61. Qc6 {[%clk 0:00:00]}  Kh7 {[%clk 0:00:00]} 62. Qxa6 {[%clk 0:00:00]}  Qe2+ {[%clk 0:00:00]} 63. Kf4 {[%clk 0:00:00]}  Qf2+ {[%clk 0:00:00]} 64. Ke4 {[%clk 0:00:00]}  Qd4+ {[%clk 0:00:00]} 65. Kf3 {[%clk 0:00:00]}  Qe5 {[%clk 0:00:00]} 66. Qb7+ {[%clk 0:00:00]}  Kh6 {[%clk 0:00:00]} 67. Qe4 {[%clk 0:00:00]}  Qc3+ {[%clk 0:00:00]} 68. Qe3+ {[%clk 0:00:00]}  Kg7 {[%clk 0:00:00]} 69. Qxc3 {[%clk 0:00:00]}  Bxc3 {[%clk 0:00:00]} 70. Ke4 {[%clk 0:00:00]}  b4 {[%clk 0:00:00]} 71. Kd3 {[%clk 0:00:00]}  Be1 {[%clk 0:00:00]} 72. Kc4 {[%clk 0:00:00]}  Kf6 {[%clk 0:00:00]} 73. Kb5 {[%clk 0:00:00]}  Kxf5 {[%clk 0:00:00]} 74. Ka4 {[%clk 0:00:00]}  Ke5 {[%clk 0:00:00]} 75. a3 {[%clk 0:00:00]}  bxa3 {[%clk 0:00:00]} 76. Kxa3 {[%clk 0:00:00]}  Kd5 {[%clk 0:00:00]} 77. Ka4 {[%clk 0:00:00]}  Kc5 {[%clk 0:00:00]} 78. Ka3 {[%clk 0:00:00]}  Kb5 {[%clk 0:00:00]} 79. Kb2 {[%clk 0:00:00]}  Kc5 {[%clk 0:00:00]} 80. Kc1 {[%clk 0:00:00]}  Kd5 {[%clk 0:00:00]} 81. Kd1 {[%clk 0:00:00]}  Bb4 {[%clk 0:00:00]} 82. Ke2 {[%clk 0:00:00]}  Kc5 {[%clk 0:00:00]} 83. Kd3 {[%clk 0:00:00]}  Kd5 {[%clk 0:00:00]} 84. Ke3 {[%clk 0:00:00]}  Kc5 {[%clk 0:00:00]} 85. Kd3 {[%clk 0:00:00]}  Kd5 {[%clk 0:00:00]} 86. c3 {[%clk 0:00:00]}  Bc5 {[%clk 0:00:00]} 87. Kc2 {[%clk 0:00:00]}  Kc6 {[%clk 0:00:00]} 88. Kd3 {[%clk 0:00:00]}  Bd6 {[%clk 0:00:00]} 89. Kc4 {[%clk 0:00:00]}  Bc5 {[%clk 0:00:00]} 90. b4 {[%clk 0:00:00]}  Bd6 {[%clk 0:00:00]} 91. Kb3 {[%clk 0:00:00]}  Kb5 {[%clk 0:00:00]} 92. c4+ {[%clk 0:00:00]}  Kb6 {[%clk 0:00:00]} 93. Kc3 {[%clk 0:00:00]}  Be7 {[%clk 0:00:00]} 94. Kb3 {[%clk 0:00:00]}  Bd6 {[%clk 0:00:00]} 95. Ka4 {[%clk 0:00:00]}  Be7 {[%clk 0:00:00]} 96. Ka3 {[%clk 0:00:00]}  Bd6 {[%clk 0:00:00]} 97. Kb3 {[%clk 0:00:00]}  Be7 {[%clk 0:00:00]} 98. Kc3 {[%clk 0:00:00]}  Bd6 {[%clk 0:00:00]} 99. Kb3 {[%clk 0:00:00]}  Be7 {[%clk 0:00:00]} 100. Kc3 {[%clk 0:00:00]}  Bd6 {[%clk 0:00:00]} 101. Kb3 {[%clk 0:00:00]} 1/2-1/2


[Site "https://www.chess.com"]

[Event "Titled Tuesday Blitz August 16 Early 2022"]
[White "Novikova, Galina"]
[Black "Kiseljova, Marya"]
[WhiteFideId "4157095"]
[BlackFideId "4155009"]
[WhiteElo "1923"]
[BlackElo "1697"]
[Result "1-0"]
[Round "07"]
[TimeControl "180+2"]
[Date "2022.08.18"]
[WhiteClock "0:00:00"]
[BlackClock "0:00:00"]

1. e4 {[%clk 0:00:00]}  c5 {[%clk 0:00:00]} 2. Nf3 {[%clk 0:00:00]}  Nc6 {[%clk 0:00:00]} 3. d4 {[%clk 0:00:00]}  cxd4 {[%clk 0:00:00]} 4. Nxd4 {[%clk 0:00:00]}  g6 {[%clk 0:00:00]} 5. Nc3 {[%clk 0:00:00]}  Bg7 {[%clk 0:00:00]} 6. Be3 {[%clk 0:00:00]}  Nf6 {[%clk 0:00:00]} 7. Nxc6 {[%clk 0:00:00]}  bxc6 {[%clk 0:00:00]} 8. e5 {[%clk 0:00:00]}  Nd5 {[%clk 0:00:00]} 9. Nxd5 {[%clk 0:00:00]}  cxd5 {[%clk 0:00:00]} 10. Qxd5 {[%clk 0:00:00]}  Rb8 {[%clk 0:00:00]} 11. O-O-O {[%clk 0:00:00]}  Qc7 {[%clk 0:00:00]} 12. f4 {[%clk 0:00:00]}  Bb7 {[%clk 0:00:00]} 13. Qc5 {[%clk 0:00:00]}  Rc8 {[%clk 0:00:00]} 14. Qxc7 {[%clk 0:00:00]}  Rxc7 {[%clk 0:00:00]} 15. Rg1 {[%clk 0:00:00]}  O-O {[%clk 0:00:00]} 16. Bd3 {[%clk 0:00:00]}  Bd5 {[%clk 0:00:00]} 17. Bxg6 {[%clk 0:00:00]}  Bxa2 {[%clk 0:00:00]} 18. Be4 {[%clk 0:00:00]}  Rfc8 {[%clk 0:00:00]} 19. Rd2 {[%clk 0:00:00]}  f6 {[%clk 0:00:00]} 20. Bd4 {[%clk 0:00:00]}  Bh6 {[%clk 0:00:00]} 21. g3 {[%clk 0:00:00]}  fxe5 {[%clk 0:00:00]} 22. Bxe5 {[%clk 0:00:00]}  d6 {[%clk 0:00:00]} 23. Bc3 {[%clk 0:00:00]}  Kf8 {[%clk 0:00:00]} 24. Bd5 {[%clk 0:00:00]}  Bc4 {[%clk 0:00:00]} 25. Bxc4 {[%clk 0:00:00]}  Rxc4 {[%clk 0:00:00]} 26. Rd5 {[%clk 0:00:00]}  Re4 {[%clk 0:00:00]} 27. Rg2 {[%clk 0:00:00]}  Kf7 {[%clk 0:00:00]} 28. Ra5 {[%clk 0:00:00]}  e5 {[%clk 0:00:00]} 29. Rxa7+ {[%clk 0:00:00]}  Kg6 {[%clk 0:00:00]} 30. Ra6 {[%clk 0:00:00]}  exf4 {[%clk 0:00:00]} 31. gxf4+ {[%clk 0:00:00]}  Kh5 {[%clk 0:00:00]} 32. Kb1 {[%clk 0:00:00]}  Bxf4 {[%clk 0:00:00]} 33. Ra7 {[%clk 0:00:00]}  Be5 {[%clk 0:00:00]} 34. Rxh7# {[%clk 0:00:00]} 1-0


[Site "https://www.chess.com"]

[Event "Titled Tuesday Blitz August 16 Early 2022"]
[White "Pakleza, Zbigniew"]
[Black "Shohat, Yotam"]
[WhiteFideId "1119290"]
[BlackFideId "2813955"]
[WhiteElo "2411"]
[BlackElo "2119"]
[Result "1-0"]
[Round "07"]
[TimeControl "180+2"]
[Date "2022.08.18"]
[WhiteClock "0:00:00"]
[BlackClock "0:00:00"]

1. d4 {[%clk 0:00:00]}  Nf6 {[%clk 0:00:00]} 2. Nf3 {[%clk 0:00:00]}  g6 {[%clk 0:00:00]} 3. Bf4 {[%clk 0:00:00]}  Bg7 {[%clk 0:00:00]} 4. e3 {[%clk 0:00:00]}  O-O {[%clk 0:00:00]} 5. Be2 {[%clk 0:00:00]}  d5 {[%clk 0:00:00]} 6. c3 {[%clk 0:00:00]}  c5 {[%clk 0:00:00]} 7. O-O {[%clk 0:00:00]}  Nc6 {[%clk 0:00:00]} 8. Nbd2 {[%clk 0:00:00]}  cxd4 {[%clk 0:00:00]} 9. cxd4 {[%clk 0:00:00]}  Nh5 {[%clk 0:00:00]} 10. Bg5 {[%clk 0:00:00]}  h6 {[%clk 0:00:00]} 11. Bh4 {[%clk 0:00:00]}  g5 {[%clk 0:00:00]} 12. Bg3 {[%clk 0:00:00]}  Nxg3 {[%clk 0:00:00]} 13. hxg3 {[%clk 0:00:00]}  e5 {[%clk 0:00:00]} 14. dxe5 {[%clk 0:00:00]}  Nxe5 {[%clk 0:00:00]} 15. Nd4 {[%clk 0:00:00]}  Nc6 {[%clk 0:00:00]} 16. N2b3 {[%clk 0:00:00]}  Qb6 {[%clk 0:00:00]} 17. Rc1 {[%clk 0:00:00]}  a5 {[%clk 0:00:00]} 18. Qd2 {[%clk 0:00:00]}  Rd8 {[%clk 0:00:00]} 19. Rfd1 {[%clk 0:00:00]}  Bf8 {[%clk 0:00:00]} 20. Nxc6 {[%clk 0:00:00]}  bxc6 {[%clk 0:00:00]} 21. Qd4 {[%clk 0:00:00]}  Rb8 {[%clk 0:00:00]} 22. Qxb6 {[%clk 0:00:00]}  Rxb6 {[%clk 0:00:00]} 23. Nxa5 {[%clk 0:00:00]}  c5 {[%clk 0:00:00]} 24. b3 {[%clk 0:00:00]}  Be6 {[%clk 0:00:00]} 25. Nc4 {[%clk 0:00:00]}  Rbb8 {[%clk 0:00:00]} 26. Ne5 {[%clk 0:00:00]}  Ra8 {[%clk 0:00:00]} 27. a4 {[%clk 0:00:00]}  Bd6 {[%clk 0:00:00]} 28. Nc6 {[%clk 0:00:00]}  Rdc8 {[%clk 0:00:00]} 29. Bb5 {[%clk 0:00:00]}  Kf8 {[%clk 0:00:00]} 30. f4 {[%clk 0:00:00]}  f6 {[%clk 0:00:00]} 31. Kf2 {[%clk 0:00:00]}  Rc7 {[%clk 0:00:00]} 32. b4 {[%clk 0:00:00]}  cxb4 {[%clk 0:00:00]} 33. Nd4 {[%clk 0:00:00]}  Bf7 {[%clk 0:00:00]} 34. Nf5 {[%clk 0:00:00]}  Rxc1 {[%clk 0:00:00]} 35. Rxc1 {[%clk 0:00:00]}  Rd8 {[%clk 0:00:00]} 36. Nxd6 {[%clk 0:00:00]}  Rxd6 {[%clk 0:00:00]} 37. Rb1 {[%clk 0:00:00]}  d4 {[%clk 0:00:00]} 38. Rxb4 {[%clk 0:00:00]}  d3 {[%clk 0:00:00]} 39. Rb1 {[%clk 0:00:00]}  d2 {[%clk 0:00:00]} 40. Be2 {[%clk 0:00:00]}  Ba2 {[%clk 0:00:00]} 41. Ra1 {[%clk 0:00:00]}  Bb3 {[%clk 0:00:00]} 42. Bd1 {[%clk 0:00:00]}  Bxd1 {[%clk 0:00:00]} 43. Rxd1 {[%clk 0:00:00]}  Kf7 {[%clk 0:00:00]} 44. Ke2 {[%clk 0:00:00]}  Ra6 {[%clk 0:00:00]} 45. Ra1 {[%clk 0:00:00]}  Rd6 {[%clk 0:00:00]} 46. a5 {[%clk 0:00:00]}  Ke6 {[%clk 0:00:00]} 47. g4 {[%clk 0:00:00]} 1-0


[Site "https://www.chess.com"]

[Event "Titled Tuesday Blitz August 16 Early 2022"]
[White "Petrova, Irina"]
[Black "Horak, Martin"]
[WhiteFideId "14124122"]
[BlackFideId "367095"]
[WhiteElo "2021"]
[BlackElo "1997"]
[Result "0-1"]
[Round "07"]
[TimeControl "180+2"]
[Date "2022.08.18"]
[WhiteClock "0:00:00"]
[BlackClock "0:00:00"]

1. e4 {[%clk 0:00:00]}  e5 {[%clk 0:00:00]} 2. Nf3 {[%clk 0:00:00]}  Nc6 {[%clk 0:00:00]} 3. Bb5 {[%clk 0:00:00]}  a6 {[%clk 0:00:00]} 4. Ba4 {[%clk 0:00:00]}  Nf6 {[%clk 0:00:00]} 5. d3 {[%clk 0:00:00]}  d6 {[%clk 0:00:00]} 6. c4 {[%clk 0:00:00]}  g6 {[%clk 0:00:00]} 7. Nc3 {[%clk 0:00:00]}  Bg7 {[%clk 0:00:00]} 8. O-O {[%clk 0:00:00]}  O-O {[%clk 0:00:00]} 9. Nd5 {[%clk 0:00:00]}  h6 {[%clk 0:00:00]} 10. h3 {[%clk 0:00:00]}  Kh7 {[%clk 0:00:00]} 11. Be3 {[%clk 0:00:00]}  Nd7 {[%clk 0:00:00]} 12. d4 {[%clk 0:00:00]}  exd4 {[%clk 0:00:00]} 13. Nxd4 {[%clk 0:00:00]}  Nxd4 {[%clk 0:00:00]} 14. Bxd4 {[%clk 0:00:00]}  Nf6 {[%clk 0:00:00]} 15. Nxf6+ {[%clk 0:00:00]}  Bxf6 {[%clk 0:00:00]} 16. Bxf6 {[%clk 0:00:00]}  Qxf6 {[%clk 0:00:00]} 17. Qd2 {[%clk 0:00:00]}  Be6 {[%clk 0:00:00]} 18. Bb3 {[%clk 0:00:00]}  Qe5 {[%clk 0:00:00]} 19. f3 {[%clk 0:00:00]}  Qc5+ {[%clk 0:00:00]} 20. Qf2 {[%clk 0:00:00]}  Qxf2+ {[%clk 0:00:00]} 21. Kxf2 {[%clk 0:00:00]}  g5 {[%clk 0:00:00]} 22. Rac1 {[%clk 0:00:00]}  b6 {[%clk 0:00:00]} 23. Bd1 {[%clk 0:00:00]}  a5 {[%clk 0:00:00]} 24. Be2 {[%clk 0:00:00]}  Rae8 {[%clk 0:00:00]} 25. Rfd1 {[%clk 0:00:00]}  Bc8 {[%clk 0:00:00]} 26. Bd3 {[%clk 0:00:00]}  Kg7 {[%clk 0:00:00]} 27. b3 {[%clk 0:00:00]}  h5 {[%clk 0:00:00]} 28. Bc2 {[%clk 0:00:00]}  h4 {[%clk 0:00:00]} 29. Rd5 {[%clk 0:00:00]}  f6 {[%clk 0:00:00]} 30. Rcd1 {[%clk 0:00:00]}  Re5 {[%clk 0:00:00]} 31. Rxe5 {[%clk 0:00:00]}  fxe5 {[%clk 0:00:00]} 32. Rd2 {[%clk 0:00:00]}  Be6 {[%clk 0:00:00]} 33. Rd1 {[%clk 0:00:00]}  a4 {[%clk 0:00:00]} 34. Ke3 {[%clk 0:00:00]}  axb3 {[%clk 0:00:00]} 35. axb3 {[%clk 0:00:00]}  Ra8 {[%clk 0:00:00]} 36. Kd3 {[%clk 0:00:00]}  Ra2 {[%clk 0:00:00]} 37. Kc3 {[%clk 0:00:00]}  Kf6 {[%clk 0:00:00]} 38. Rb1 {[%clk 0:00:00]}  Bd7 {[%clk 0:00:00]} 39. Rb2 {[%clk 0:00:00]}  Rxb2 {[%clk 0:00:00]} 40. Kxb2 {[%clk 0:00:00]}  g4 {[%clk 0:00:00]} 41. hxg4 {[%clk 0:00:00]}  Kg5 {[%clk 0:00:00]} 42. Kc3 {[%clk 0:00:00]}  Kf4 {[%clk 0:00:00]} 43. Kd2 {[%clk 0:00:00]}  Kg3 {[%clk 0:00:00]} 44. g5 {[%clk 0:00:00]}  Kxg2 {[%clk 0:00:00]} 45. g6 {[%clk 0:00:00]}  h3 {[%clk 0:00:00]} 46. g7 {[%clk 0:00:00]}  Be6 {[%clk 0:00:00]} 47. f4 {[%clk 0:00:00]}  h2 {[%clk 0:00:00]} 48. f5 {[%clk 0:00:00]}  Bg8 {[%clk 0:00:00]} 49. f6 {[%clk 0:00:00]}  h1=Q {[%clk 0:00:00]} 50. Kc3 {[%clk 0:00:00]}  Qe1+ {[%clk 0:00:00]} 51. Kb2 {[%clk 0:00:00]}  Qf2 {[%clk 0:00:00]} 0-1


[Site "https://www.chess.com"]

[Event "Titled Tuesday Blitz August 16 Early 2022"]
[White "Rangel, Daniel"]
[Black "Sourath Biswas"]
[WhiteFideId "2124475"]
[BlackFideId "35091484"]
[WhiteElo "2189"]
[BlackElo "2302"]
[Result "0-1"]
[Round "07"]
[TimeControl "180+2"]
[Date "2022.08.18"]
[WhiteClock "0:00:00"]
[BlackClock "0:00:00"]

1. d4 {[%clk 0:00:00]}  Nf6 {[%clk 0:00:00]} 2. c4 {[%clk 0:00:00]}  g6 {[%clk 0:00:00]} 3. Nc3 {[%clk 0:00:00]}  Bg7 {[%clk 0:00:00]} 4. Bf4 {[%clk 0:00:00]}  O-O {[%clk 0:00:00]} 5. e3 {[%clk 0:00:00]}  d5 {[%clk 0:00:00]} 6. Nf3 {[%clk 0:00:00]}  c5 {[%clk 0:00:00]} 7. dxc5 {[%clk 0:00:00]}  Qa5 {[%clk 0:00:00]} 8. a3 {[%clk 0:00:00]}  dxc4 {[%clk 0:00:00]} 9. Bxc4 {[%clk 0:00:00]}  Qxc5 {[%clk 0:00:00]} 10. Ba2 {[%clk 0:00:00]}  Nc6 {[%clk 0:00:00]} 11. O-O {[%clk 0:00:00]}  Bf5 {[%clk 0:00:00]} 12. Rc1 {[%clk 0:00:00]}  Rad8 {[%clk 0:00:00]} 13. Nd5 {[%clk 0:00:00]}  Qa5 {[%clk 0:00:00]} 14. Rxc6 {[%clk 0:00:00]}  Nxd5 {[%clk 0:00:00]} 15. Rc1 {[%clk 0:00:00]}  Nxf4 {[%clk 0:00:00]} 16. Qb3 {[%clk 0:00:00]}  Be6 {[%clk 0:00:00]} 17. Qxb7 {[%clk 0:00:00]}  Ne2+ {[%clk 0:00:00]} 18. Kh1 {[%clk 0:00:00]}  Bxa2 {[%clk 0:00:00]} 0-1


[Site "https://www.chess.com"]

[Event "Titled Tuesday Blitz August 16 Early 2022"]
[White "Ronka, Erik"]
[Black "Leiva, Gianmarco"]
[WhiteFideId "505080"]
[BlackFideId "3804399"]
[WhiteElo "2248"]
[BlackElo "2389"]
[Result "0-1"]
[Round "07"]
[TimeControl "180+2"]
[Date "2022.08.18"]
[WhiteClock "0:00:00"]
[BlackClock "0:00:00"]

1. e4 {[%clk 0:00:00]}  c5 {[%clk 0:00:00]} 2. Nf3 {[%clk 0:00:00]}  d6 {[%clk 0:00:00]} 3. d4 {[%clk 0:00:00]}  cxd4 {[%clk 0:00:00]} 4. Nxd4 {[%clk 0:00:00]}  Nf6 {[%clk 0:00:00]} 5. Nc3 {[%clk 0:00:00]}  a6 {[%clk 0:00:00]} 6. Nb3 {[%clk 0:00:00]}  e5 {[%clk 0:00:00]} 7. Bg5 {[%clk 0:00:00]}  Be7 {[%clk 0:00:00]} 8. Bxf6 {[%clk 0:00:00]}  Bxf6 {[%clk 0:00:00]} 9. Qd3 {[%clk 0:00:00]}  Nc6 {[%clk 0:00:00]} 10. O-O-O {[%clk 0:00:00]}  Be7 {[%clk 0:00:00]} 11. Nd5 {[%clk 0:00:00]}  Be6 {[%clk 0:00:00]} 12. Nxe7 {[%clk 0:00:00]}  Kxe7 {[%clk 0:00:00]} 13. g3 {[%clk 0:00:00]}  Qc7 {[%clk 0:00:00]} 14. Kb1 {[%clk 0:00:00]}  Rhd8 {[%clk 0:00:00]} 15. Bg2 {[%clk 0:00:00]}  a5 {[%clk 0:00:00]} 16. f4 {[%clk 0:00:00]}  f6 {[%clk 0:00:00]} 17. Nc1 {[%clk 0:00:00]}  b5 {[%clk 0:00:00]} 18. f5 {[%clk 0:00:00]}  Bf7 {[%clk 0:00:00]} 19. g4 {[%clk 0:00:00]}  Rdc8 {[%clk 0:00:00]} 20. Qd2 {[%clk 0:00:00]}  b4 {[%clk 0:00:00]} 21. g5 {[%clk 0:00:00]}  Nd4 {[%clk 0:00:00]} 22. Nb3 {[%clk 0:00:00]}  Qxc2+ {[%clk 0:00:00]} 23. Qxc2 {[%clk 0:00:00]}  Nxc2 {[%clk 0:00:00]} 24. Nd2 {[%clk 0:00:00]}  Ne3 {[%clk 0:00:00]} 25. Rdg1 {[%clk 0:00:00]}  Rc2 {[%clk 0:00:00]} 0-1


[Site "https://www.chess.com"]

[Event "Titled Tuesday Blitz August 16 Early 2022"]
[White "Rosenberg, Evan S"]
[Black "Grot, Blazej"]
[WhiteFideId "2019299"]
[BlackFideId "21835845"]
[WhiteElo "1999"]
[BlackElo "1614"]
[Result "0-1"]
[Round "07"]
[TimeControl "180+2"]
[Date "2022.08.18"]
[WhiteClock "0:00:00"]
[BlackClock "0:00:00"]

1. e4 {[%clk 0:00:00]}  c5 {[%clk 0:00:00]} 2. Nc3 {[%clk 0:00:00]}  e6 {[%clk 0:00:00]} 3. Nge2 {[%clk 0:00:00]}  Nc6 {[%clk 0:00:00]} 4. g3 {[%clk 0:00:00]}  d5 {[%clk 0:00:00]} 5. exd5 {[%clk 0:00:00]}  exd5 {[%clk 0:00:00]} 6. d4 {[%clk 0:00:00]}  Bg4 {[%clk 0:00:00]} 7. Bg2 {[%clk 0:00:00]}  Nxd4 {[%clk 0:00:00]} 8. h3 {[%clk 0:00:00]}  Bf3 {[%clk 0:00:00]} 9. Kf1 {[%clk 0:00:00]}  Qf6 {[%clk 0:00:00]} 10. Bf4 {[%clk 0:00:00]}  Bxg2+ {[%clk 0:00:00]} 11. Kxg2 {[%clk 0:00:00]}  Nxe2 {[%clk 0:00:00]} 12. Qxe2+ {[%clk 0:00:00]}  Ne7 {[%clk 0:00:00]} 13. Nxd5 {[%clk 0:00:00]}  Qc6 {[%clk 0:00:00]} 14. c4 {[%clk 0:00:00]}  O-O-O {[%clk 0:00:00]} 15. Qg4+ {[%clk 0:00:00]}  f5 {[%clk 0:00:00]} 16. Qf3 {[%clk 0:00:00]}  Nxd5 {[%clk 0:00:00]} 17. cxd5 {[%clk 0:00:00]}  Qxd5 {[%clk 0:00:00]} 18. Rac1 {[%clk 0:00:00]}  Qxf3+ {[%clk 0:00:00]} 19. Kxf3 {[%clk 0:00:00]}  b6 {[%clk 0:00:00]} 20. b4 {[%clk 0:00:00]}  Kb7 {[%clk 0:00:00]} 21. bxc5 {[%clk 0:00:00]}  Bxc5 {[%clk 0:00:00]} 22. a4 {[%clk 0:00:00]}  Rd3+ {[%clk 0:00:00]} 23. Kg2 {[%clk 0:00:00]}  Re8 {[%clk 0:00:00]} 24. Rhe1 {[%clk 0:00:00]}  Rxe1 {[%clk 0:00:00]} 25. Rxe1 {[%clk 0:00:00]}  Ra3 {[%clk 0:00:00]} 26. Re5 {[%clk 0:00:00]}  g6 {[%clk 0:00:00]} 27. Re8 {[%clk 0:00:00]}  Rxa4 {[%clk 0:00:00]} 28. Rh8 {[%clk 0:00:00]}  Ra2 {[%clk 0:00:00]} 29. Rxh7+ {[%clk 0:00:00]}  Ka6 {[%clk 0:00:00]} 30. g4 {[%clk 0:00:00]}  Rxf2+ {[%clk 0:00:00]} 31. Kg3 {[%clk 0:00:00]}  fxg4 {[%clk 0:00:00]} 32. hxg4 {[%clk 0:00:00]}  Ra2 {[%clk 0:00:00]} 33. Rg7 {[%clk 0:00:00]}  Ra3+ {[%clk 0:00:00]} 34. Kg2 {[%clk 0:00:00]}  Kb5 {[%clk 0:00:00]} 35. Rxg6 {[%clk 0:00:00]}  a5 {[%clk 0:00:00]} 36. Rg8 {[%clk 0:00:00]}  Rd3 {[%clk 0:00:00]} 37. g5 {[%clk 0:00:00]}  Rd7 {[%clk 0:00:00]} 38. g6 {[%clk 0:00:00]}  Bd4 {[%clk 0:00:00]} 39. Bh6 {[%clk 0:00:00]}  a4 {[%clk 0:00:00]} 40. g7 {[%clk 0:00:00]}  a3 {[%clk 0:00:00]} 41. Kf3 {[%clk 0:00:00]}  Kb4 {[%clk 0:00:00]} 42. Bd2+ {[%clk 0:00:00]}  Kb3 {[%clk 0:00:00]} 43. Ke4 {[%clk 0:00:00]}  Bxg7 {[%clk 0:00:00]} 44. Rb8 {[%clk 0:00:00]}  Bd4 {[%clk 0:00:00]} 45. Ba5 {[%clk 0:00:00]}  a2 {[%clk 0:00:00]} 46. Bxb6 {[%clk 0:00:00]}  Bxb6 {[%clk 0:00:00]} 47. Rxb6+ {[%clk 0:00:00]}  Kc2 {[%clk 0:00:00]} 48. Rc6+ {[%clk 0:00:00]}  Kb1 {[%clk 0:00:00]} 49. Rb6+ {[%clk 0:00:00]}  Kc1 {[%clk 0:00:00]} 50. Rc6+ {[%clk 0:00:00]}  Kd1 {[%clk 0:00:00]} 51. Ra6 {[%clk 0:00:00]}  Rd2 {[%clk 0:00:00]} 52. Ke3 {[%clk 0:00:00]}  Kc1 {[%clk 0:00:00]} 0-1


[Site "https://www.chess.com"]